bitfinex/quotes_BTCUSD_20250716
["timestamp","ask_amount","ask_price","bid_price","bid_amount"]
[1752625231624,0.35595156,117690.0,117680.0,0.50148286]
[1752625232205,0.34745517,117690.0,117680.0,0.50148286]
[1752625232404,0.34745517,117690.0,117680.0,0.50408286]
[1752625233031,0.0003823,117690.0,117680.0,0.36828286]
[1752625233231,0.00887854,117690.0,117680.0,0.48534286]
[1752625233440,0.34745517,117690.0,117680.0,0.48534286]
[1752625233621,0.35595141,117690.0,117680.0,0.50194286]
[1752625233947,0.34745517,117690.0,117680.0,0.50194286]
[1752625234859,0.35595156,117690.0,117680.0,0.50194286]
[1752625235061,0.0003823,117690.0,117680.0,0.50194286]
[1752625235448,0.00887862,117690.0,117680.0,0.50194286]
[1752625236263,0.01737508,117690.0,117680.0,0.50194286]
[1752625236442,0.36444795,117690.0,117680.0,0.50194286]
[1752625237074,0.35595149,117690.0,117680.0,0.50194286]
[1752625237477,0.34745517,117690.0,117680.0,0.50173486]
[1752625237989,0.35595156,117690.0,117680.0,0.50173486]
[1752625238218,0.36444809,117690.0,117680.0,0.48513486]
[1752625238443,0.34745517,117690.0,117680.0,0.48513486]
[1752625239467,0.35595156,117690.0,117680.0,0.48513486]
[1752625239903,0.0003823,117690.0,117680.0,0.48513486]
[1752625240103,0.0003823,117690.0,117680.0,0.50133486]
[1752625241997,0.00887862,117690.0,117680.0,0.50133486]
[1752625242247,0.0003823,117690.0,117680.0,0.50133486]
[1752625242492,0.0003823,117690.0,117680.0,0.50393486]
[1752625242719,0.0003823,117690.0,117680.0,0.85100773]
[1752625243249,0.0003823,117690.0,117680.0,0.50393486]
[1752625243904,0.0003823,117690.0,117680.0,0.85100773]
[1752625244669,0.0003823,117690.0,117680.0,0.87112773]
[1752625244893,0.0003823,117690.0,117680.0,0.52405486]
[1752625245108,0.0003823,117690.0,117680.0,0.87112773]
[1752625245314,0.0003823,117690.0,117680.0,0.89661941]
[1752625247128,4.412e-05,117690.0,117680.0,0.89661941]
[1752625248902,4.412e-05,117690.0,117680.0,0.54954654]
[1752625249153,4.412e-05,117690.0,117680.0,0.89661941]
[1752625249630,4.412e-05,117690.0,117680.0,0.54954654]
[1752625255049,4.412e-05,117690.0,117680.0,0.89661941]
[1752625259611,4.412e-05,117690.0,117680.0,0.54954654]
[1752625259989,4.412e-05,117690.0,117680.0,0.89661941]
[1752625262453,0.00854036,117690.0,117680.0,0.35399486]
[1752625262664,0.40864637,117690.0,117680.0,0.44688392]
[1752625262877,0.40864637,117690.0,117680.0,0.42676392]
[1752625263331,0.0615735,117690.0,117680.0,0.42676392]
[1752625263552,0.40014969,117690.0,117680.0,0.42676392]
[1752625263776,0.40864622,117690.0,117680.0,0.42676392]
[1752625263987,0.40864622,117690.0,117680.0,0.4906803]
[1752625264414,0.41714297,117690.0,117680.0,0.4906803]
[1752625264770,0.4171429,117690.0,117680.0,0.4906803]
[1752625264970,0.40864622,117690.0,117680.0,0.4906803]
[1752625265210,0.4171429,117690.0,117680.0,0.4906803]
[1752625265583,0.59557776,117690.0,117680.0,0.48218319]
[1752625265785,0.59557776,117690.0,117680.0,0.49068037]
[1752625266212,0.42563965,117690.0,117680.0,0.49917748]
[1752625267143,0.4171429,117690.0,117680.0,0.49917748]
[1752625268250,0.59557762,117690.0,117680.0,0.47368594]
[1752625268469,0.58708174,117690.0,117680.0,0.48218327]
[1752625269078,0.24000887,117690.0,117680.0,0.49068052]
[1752625269309,0.4001502,117690.0,117680.0,0.49068052]
[1752625269515,0.40864695,117690.0,117680.0,0.49917763]
[1752625271714,0.04458044,117690.0,117680.0,0.49917763]
[1752625271936,0.0530769,117690.0,117680.0,0.49917763]
[1752625272597,4.412e-05,117690.0,117680.0,0.53236763]
[1752625273337,4.412e-05,117690.0,117680.0,0.51686763]
[1752625274569,4.412e-05,117690.0,117680.0,0.8824405]
[1752625275287,4.412e-05,117690.0,117680.0,0.53536763]
[1752625275468,4.412e-05,117690.0,117680.0,0.53276763]
[1752625275600,4.412e-05,117690.0,117680.0,0.51686763]
[1752625276208,0.00854036,117690.0,117680.0,0.51686763]
[1752625276429,0.40858608,117690.0,117680.0,0.49905763]
[1752625276843,0.40008955,117690.0,117680.0,0.49905763]
[1752625277046,0.05301668,117690.0,117680.0,0.49905763]
[1752625277267,0.06151314,117690.0,117680.0,0.49905763]
[1752625278360,0.07000967,117690.0,117680.0,0.49905763]
[1752625278804,0.06151314,117690.0,117680.0,0.49905763]
[1752625279240,0.05301668,117690.0,117680.0,0.49905763]
[1752625279444,0.06151307,117690.0,117680.0,0.49905763]
[1752625280252,0.07000967,117690.0,117680.0,0.49905763]
[1752625281405,0.06151307,117690.0,117680.0,0.49905763]
[1752625281620,4.412e-05,117690.0,117680.0,0.51697763]
[1752625283159,0.00854051,117690.0,117680.0,0.53337763]
[1752625283355,0.00854051,117690.0,117680.0,0.51697763]
[1752625283778,0.01703697,117690.0,117680.0,0.50107763]
[1752625284198,0.00854051,117690.0,117680.0,0.50107763]
[1752625286314,0.01382051,117690.0,117680.0,0.50107763]
[1752625286738,0.01176051,117690.0,117680.0,0.50107763]
[1752625286913,0.00854044,117690.0,117680.0,0.50107763]
[1752625287122,0.00854036,117690.0,117680.0,0.50107763]
[1752625287331,4.412e-05,117690.0,117680.0,0.50107763]
[1752625287546,0.00854044,117690.0,117680.0,0.50107763]
[1752625292747,4.412e-05,117690.0,117680.0,0.8810505]
[1752625292954,4.412e-05,117690.0,117680.0,0.53397763]
[1752625293163,4.412e-05,117690.0,117680.0,0.8810505]
[1752625294642,4.412e-05,117690.0,117680.0,0.53397763]
[1752625295292,0.0308135,117690.0,117680.0,0.50107763]
[1752625295516,0.57102846,117690.0,117680.0,0.08751028]
[1752625295736,0.57102846,117690.0,117680.0,0.22275028]
[1752625296173,4.412e-05,117690.0,117680.0,0.42021467]
[1752625296391,0.00854051,117690.0,117680.0,0.42021467]
[1752625296618,0.02231682,117690.0,117680.0,0.42021467]
[1752625296832,0.02231675,117690.0,117680.0,0.48355482]
[1752625297426,0.03081335,117690.0,117680.0,0.48355482]
[1752625297630,0.03081328,117690.0,117680.0,0.48355482]
[1752625297849,0.03081328,117690.0,117680.0,0.48153482]
[1752625297850,0.05480996,117690.0,117680.0,0.48153482]
[1752625298061,0.07080996,117690.0,117680.0,0.48153482]
[1752625298292,0.06231328,117690.0,117680.0,0.34629482]
[1752625298571,0.07080996,117690.0,117680.0,0.48153482]
[1752625298778,0.07930671,117690.0,117680.0,0.48153482]
[1752625298991,0.07930671,117690.0,117680.0,0.34629482]
[1752625299216,0.06231328,117690.0,117680.0,0.48149482]
[1752625299434,0.07081003,117690.0,117680.0,0.48149482]
[1752625299852,0.4178829,117690.0,117680.0,0.48149482]
[1752625300075,0.40938615,117690.0,117680.0,0.48149482]
[1752625300277,0.41788283,117690.0,117680.0,0.48149482]
[1752625300857,0.41037958,117690.0,117680.0,0.48149482]
[1752625302889,0.41038016,117690.0,117680.0,0.48149482]
[1752625303654,0.58031813,117690.0,117680.0,0.48149482]
[1752625303893,0.57082867,117690.0,117680.0,0.08751028]
[1752625304094,0.57082867,117690.0,117680.0,0.22267028]
[1752625304198,0.57082867,117690.0,117680.0,0.13716]
[1752625304419,0.70598867,117690.0,117680.0,0.002]
[1752625307181,0.21034988,117680.0,117670.0,0.13516]
[1752625307392,0.55742275,117680.0,117670.0,0.3064299]
[1752625307639,0.56256275,117680.0,117670.0,0.3064299]
[1752625308415,0.56256275,117680.0,117670.0,0.3084299]
[1752625310251,0.56256275,117680.0,117670.0,0.47839675]
[1752625310470,0.56256275,117680.0,117670.0,0.3084299]
[1752625310702,0.56256275,117680.0,117670.0,0.22267028]
[1752625313843,0.56256275,117680.0,117670.0,0.13516]
[1752625314058,0.21026512,117670.0,117660.0,0.5]
[1752625314268,0.69442799,117670.0,117660.0,0.66686774]
[1752625314484,0.69755799,117670.0,117660.0,0.66686774]
[1752625317078,0.69755799,117670.0,117660.0,0.58135746]
[1752625317303,1.03755799,117670.0,117660.0,0.5]
[1752625318322,1.03855799,117670.0,117660.0,0.5]
[1752625321188,1.02321799,117670.0,117660.0,0.5]
[1752625321358,1.03881799,117670.0,117660.0,0.5]
[1752625325552,1.02321799,117670.0,117660.0,0.5]
[1752625326666,1.02317799,117670.0,117660.0,0.5]
[1752625328783,0.67610512,117670.0,117660.0,0.5]
[1752625328983,1.02317799,117670.0,117660.0,0.5]
[1752625329199,0.88817799,117670.0,117660.0,0.5]
[1752625329406,1.02313799,117670.0,117660.0,0.5]
[1752625329608,1.02313799,117670.0,117660.0,0.56383272]
[1752625329914,1.00663799,117670.0,117660.0,0.56383272]
[1752625330538,1.00663799,117670.0,117660.0,0.5]
[1752625332836,0.87167799,117670.0,117660.0,0.6699813]
[1752625333036,1.00659799,117670.0,117660.0,0.6699813]
[1752625333670,1.00659799,117670.0,117660.0,0.5]
[1752625333888,1.00659799,117670.0,117660.0,0.67848036]
[1752625334099,1.00659799,117670.0,117660.0,0.82308629]
[1752625334100,0.01799581,117670.0,117660.0,0.82308629]
[1752625334336,0.001,117670.0,117660.0,0.91119657]
[1752625335208,0.36549119,117680.0,117670.0,0.227961]
[1752625335422,0.02549119,117680.0,117670.0,0.364841]
[1752625335666,0.03398852,117680.0,117670.0,0.364841]
[1752625335896,0.02549119,117680.0,117670.0,0.45060062]
[1752625336092,0.03398844,117680.0,117670.0,0.45060062]
[1752625336296,0.04248584,117680.0,117670.0,0.45060062]
[1752625336505,0.38955871,117680.0,117670.0,0.45060062]
[1752625336709,0.38955921,117680.0,117670.0,0.45060062]
[1752625337343,0.38106174,117680.0,117670.0,0.45060062]
[1752625337991,0.36016711,117690.0,117680.0,0.19544461]
[1752625338205,0.34854044,117690.0,117680.0,0.39401772]
[1752625338417,0.35703683,117690.0,117680.0,0.39401772]
[1752625338839,0.34854044,117690.0,117680.0,0.39401772]
[1752625339049,0.3570369,117690.0,117680.0,0.39401772]
[1752625339517,4.412e-05,117690.0,117680.0,0.39401772]
[1752625339747,0.00854036,117690.0,117680.0,0.39661772]
[1752625339968,4.412e-05,117690.0,117680.0,0.39661772]
[1752625342604,0.00854044,117690.0,117680.0,0.39661772]
[1752625342821,4.412e-05,117690.0,117680.0,0.39861772]
[1752625343720,0.01703682,117690.0,117680.0,0.39601772]
[1752625343935,0.02553342,117690.0,117680.0,0.39601772]
[1752625344662,0.03403017,117690.0,117680.0,0.39601772]
[1752625344876,0.02553342,117690.0,117680.0,0.39601772]
[1752625345300,0.37260629,117690.0,117680.0,0.39601772]
[1752625345643,0.38110304,117690.0,117680.0,0.39601772]
[1752625347380,0.37260629,117690.0,117680.0,0.39601772]
[1752625347562,0.02553342,117690.0,117680.0,0.39601772]
[1752625347771,0.0340301,117690.0,117680.0,0.39601772]
[1752625349264,0.02553342,117690.0,117680.0,0.39601772]
[1752625350197,0.01703682,117690.0,117680.0,0.39601772]
[1752625351081,4.412e-05,117690.0,117680.0,0.39601772]
[1752625351290,4.412e-05,117690.0,117680.0,0.39861772]
[1752625354062,4.412e-05,117690.0,117680.0,0.39601772]
[1752625354615,0.00854044,117690.0,117680.0,0.39601772]
[1752625354792,0.01703683,117690.0,117680.0,0.39601772]
[1752625356659,0.02553336,117690.0,117680.0,0.39601772]
[1752625356856,0.01703683,117690.0,117680.0,0.39601772]
[1752625357087,4.412e-05,117690.0,117680.0,0.39861772]
[1752625358240,0.00854051,117690.0,117680.0,0.39601772]
[1752625358724,0.00854044,117690.0,117680.0,0.39601772]
[1752625360162,0.00854044,117690.0,117680.0,0.38071772]
[1752625360376,0.01703697,117690.0,117680.0,0.38071772]
[1752625361276,0.0170369,117690.0,117680.0,0.38071772]
[1752625361976,0.0255335,117690.0,117680.0,0.38071772]
[1752625364191,0.0255335,117690.0,117680.0,0.36571772]
[1752625366327,0.0170369,117690.0,117680.0,0.36571772]
[1752625367355,0.00854044,117690.0,117680.0,0.36571772]
[1752625367546,4.412e-05,117690.0,117680.0,0.38171772]
[1752625368134,0.00854036,117690.0,117680.0,0.38171772]
[1752625370097,0.36715079,117700.0,117690.0,0.19542778]
[1752625370334,0.3846115,117700.0,117690.0,0.38600281]
[1752625370764,0.03753806,117700.0,117690.0,0.38600281]
[1752625370975,0.00865232,117700.0,117690.0,0.47357309]
[1752625371212,0.00865232,117700.0,117690.0,0.48937309]
[1752625371481,0.00865232,117700.0,117690.0,0.50477309]
[1752625371692,0.00865224,117700.0,117690.0,0.50477309]
[1752625372059,0.01714791,117700.0,117690.0,0.50477309]
[1752625372493,0.02564372,117700.0,117690.0,0.50477309]
[1752625372690,0.00015665,117700.0,117690.0,0.50457309]
[1752625373490,0.00865217,117700.0,117690.0,0.50457309]
[1752625373727,0.00015665,117700.0,117690.0,0.50457309]
[1752625374994,0.00865224,117700.0,117690.0,0.50457309]
[1752625376579,0.01714798,117700.0,117690.0,0.50457309]
[1752625376796,0.01714798,117700.0,117690.0,0.48937309]
[1752625377857,0.01714798,117700.0,117690.0,0.47357309]
[1752625378060,0.02564379,117700.0,117690.0,0.47357309]
[1752625378580,0.01714798,117700.0,117690.0,0.47357309]
[1752625379145,0.00865224,117700.0,117690.0,0.47357309]
[1752625379354,0.01714798,117700.0,117690.0,0.47357309]
[1752625379755,0.01714798,117700.0,117690.0,0.48897309]
[1752625380293,0.00865224,117700.0,117690.0,0.48897309]
[1752625380894,0.01714805,117700.0,117690.0,0.48897309]
[1752625381137,0.00865224,117700.0,117690.0,0.48897309]
[1752625381364,0.01714798,117700.0,117690.0,0.48897309]
[1752625381799,0.01714791,117700.0,117690.0,0.48897309]
[1752625382726,0.00015665,117700.0,117690.0,0.48897309]
[1752625382945,0.00015665,117700.0,117690.0,0.50657309]
[1752625383382,0.00015665,117700.0,117690.0,0.85364596]
[1752625384232,0.00015665,117700.0,117690.0,0.87915496]
[1752625384648,0.00015665,117700.0,117690.0,0.88115496]
[1752625385007,0.00015665,117700.0,117690.0,0.87915496]
[1752625385215,0.00015665,117700.0,117690.0,0.88415496]
[1752625385812,0.00015665,117700.0,117690.0,0.91023137]
[1752625386277,0.00726672,117720.0,117710.0,0.19539457]
[1752625386483,0.00731744,117720.0,117710.0,0.49347179]
[1752625386686,0.02430596,117720.0,117710.0,0.49347179]
[1752625386836,0.01581159,117720.0,117710.0,0.49347179]
[1752625387042,0.00731744,117720.0,117710.0,0.49347179]
[1752625387476,5.072e-05,117720.0,117710.0,0.49347179]
[1752625387663,5.072e-05,117720.0,117710.0,0.50907179]
[1752625387861,5.072e-05,117720.0,117710.0,0.51107179]
[1752625391555,0.36083767,117720.0,117710.0,0.41936485]
[1752625391756,5.072e-05,117720.0,117710.0,0.41936485]
[1752625392304,5.072e-05,117720.0,117710.0,0.43436485]
[1752625397047,5.072e-05,117720.0,117710.0,0.45286485]
[1752625397464,5.072e-05,117720.0,117710.0,0.79993772]
[1752625397646,5.072e-05,117720.0,117710.0,0.88569734]
[1752625397876,5.072e-05,117720.0,117710.0,0.91120334]
[1752625398925,5.072e-05,117720.0,117710.0,0.56413047]
[1752625399143,5.072e-05,117720.0,117710.0,0.91120334]
[1752625401023,5.072e-05,117720.0,117710.0,0.92574419]
[1752625402150,5.072e-05,117720.0,117710.0,0.57867132]
[1752625402362,5.072e-05,117720.0,117710.0,0.92574419]
[1752625403739,5.072e-05,117720.0,117710.0,0.57867132]
[1752625403956,5.072e-05,117720.0,117710.0,0.44427132]
[1752625404157,5.072e-05,117720.0,117710.0,0.57851132]
[1752625404392,0.38550225,117720.0,117710.0,0.30841085]
[1752625404596,0.40180225,117720.0,117710.0,0.44265085]
[1752625404827,0.41029683,117720.0,117710.0,0.44265085]
[1752625405080,0.40180225,117720.0,117710.0,0.41714485]
[1752625405706,0.39330781,117720.0,117710.0,0.41714485]
[1752625405910,0.40180218,117720.0,117710.0,0.47838423]
[1752625406946,0.41029676,117720.0,117710.0,0.47838423]
[1752625407576,0.39330781,117720.0,117710.0,0.47838423]
[1752625407778,0.04623487,117720.0,117710.0,0.47838423]
[1752625408446,0.05472924,117720.0,117710.0,0.47838423]
[1752625408848,0.06322375,117720.0,117710.0,0.47838423]
[1752625409241,0.05472924,117720.0,117710.0,0.47838423]
[1752625409701,0.06322382,117720.0,117710.0,0.47838423]
[1752625409941,0.06322375,117720.0,117710.0,0.47838423]
[1752625410158,0.05472924,117720.0,117710.0,0.47838423]
[1752625411293,0.05472917,117720.0,117710.0,0.47838423]
[1752625412365,0.03842917,117720.0,117710.0,0.47838423]
[1752625412772,0.03842917,117720.0,117710.0,0.34414423]
[1752625412978,0.04692361,117720.0,117710.0,0.47834423]
[1752625413293,0.03842917,117720.0,117710.0,0.47834423]
[1752625413546,0.05422917,117720.0,117710.0,0.47834423]
[1752625414222,0.06272361,117720.0,117710.0,0.47834423]
[1752625414463,0.05422917,117720.0,117710.0,0.47834423]
[1752625415147,0.03842917,117720.0,117710.0,0.47834423]
[1752625416770,0.03842917,117720.0,117710.0,0.34414423]
[1752625416983,0.03842917,117720.0,117710.0,0.47830423]
[1752625417336,0.0299348,117720.0,117710.0,0.47830423]
[1752625417569,5.072e-05,117720.0,117710.0,0.48034423]
[1752625417847,5.072e-05,117720.0,117710.0,0.49634423]
[1752625418472,5.072e-05,117720.0,117710.0,0.48034423]
[1752625418898,5.072e-05,117720.0,117710.0,0.8604171]
[1752625421977,5.072e-05,117720.0,117710.0,0.8725291]
[1752625425108,5.072e-05,117720.0,117710.0,0.52545623]
[1752625425309,5.072e-05,117720.0,117710.0,0.8725291]
[1752625427306,5.072e-05,117720.0,117710.0,0.88706995]
[1752625428211,4.1e-06,117720.0,117710.0,0.88706995]
[1752625428633,4.1e-06,117720.0,117710.0,0.88506995]
[1752625428834,4.1e-06,117720.0,117710.0,0.89006995]
[1752625434979,4.1e-06,117720.0,117710.0,1.28714282]
[1752625438339,5.262e-05,117730.0,117720.0,0.20991883]
[1752625438553,5.262e-05,117730.0,117720.0,1.24174447]
[1752625438769,5.262e-05,117730.0,117720.0,1.24434447]
[1752625439202,0.0004,117740.0,117730.0,0.24020223]
[1752625439353,0.00045071,117740.0,117730.0,0.80889538]
[1752625439561,0.00045071,117740.0,117730.0,0.81149538]
[1752625439760,0.00045071,117740.0,117730.0,0.897255]
[1752625440535,0.00045071,117740.0,117730.0,0.898255]
[1752625440766,0.00045071,117740.0,117730.0,0.923753]
[1752625442005,0.00045071,117740.0,117730.0,0.922753]
[1752625442218,0.00045071,117740.0,117730.0,0.923753]
[1752625442426,0.00045071,117740.0,117730.0,0.973753]
[1752625442925,1e-08,117740.0,117730.0,1.313753]
[1752625443122,1e-08,117740.0,117730.0,1.403233]
[1752625444982,1e-08,117740.0,117730.0,1.402233]
[1752625445471,1e-08,117740.0,117730.0,1.407233]
[1752625448451,0.0004,117750.0,117740.0,0.58935851]
[1752625448655,0.0004,117750.0,117740.0,0.89661841]
[1752625448871,0.0004,117750.0,117740.0,0.89921841]
[1752625449205,0.0004,117750.0,117740.0,0.90285841]
[1752625449964,0.0004,117750.0,117740.0,0.90485841]
[1752625451950,0.0004,117750.0,117740.0,0.95485841]
[1752625452295,0.0004,117750.0,117740.0,1.15877841]
[1752625457253,0.0004,117750.0,117740.0,1.15609841]
[1752625457474,0.0004,117750.0,117740.0,1.13989841]
[1752625457644,0.0004,117750.0,117740.0,1.00613841]
[1752625457840,0.03707,117750.0,117740.0,0.57617469]
[1752625458049,0.03707,117750.0,117740.0,0.70993469]
[1752625459600,0.0004,117750.0,117740.0,1.05909756]
[1752625459824,0.0004,117750.0,117740.0,1.07363841]
[1752625460105,0.0004,117750.0,117740.0,1.09243841]
[1752625460379,0.0004,117750.0,117740.0,1.08983841]
[1752625464107,0.0004,117750.0,117740.0,0.74276554]
[1752625464320,0.0004,117750.0,117740.0,1.08983841]
[1752625467118,0.0004,117750.0,117740.0,1.14243841]
[1752625467329,4.908e-05,117750.0,117740.0,1.15823841]
[1752625469218,4.908e-05,117750.0,117740.0,1.15563841]
[1752625470433,4.908e-05,117750.0,117740.0,1.13983841]
[1752625470647,4.908e-05,117750.0,117740.0,1.12363841]
[1752625470870,0.03761908,117750.0,117740.0,0.93778841]
[1752625471090,0.03761908,117750.0,117740.0,0.72435554]
[1752625471755,0.03761908,117750.0,117740.0,1.07142841]
[1752625474539,0.03761908,117750.0,117740.0,1.07138841]
[1752625475926,0.03761908,117750.0,117740.0,0.49041507]
[1752625476135,0.39318394,117750.0,117740.0,0.49041507]
[1752625476362,0.39318386,117750.0,117740.0,0.62033507]
[1752625476574,0.40167592,117750.0,117740.0,0.62033507]
[1752625476779,0.39318386,117750.0,117740.0,0.62033507]
[1752625476988,0.41016805,117750.0,117740.0,0.70609469]
[1752625477193,0.41016798,117750.0,117740.0,0.70609469]
[1752625477407,0.40167585,117750.0,117740.0,0.70409469]
[1752625477613,0.03861908,117750.0,117740.0,0.70409469]
[1752625477822,0.05560312,117750.0,117740.0,0.70409469]
[1752625478238,0.41116819,117750.0,117740.0,0.70409469]
[1752625479026,0.05560312,117750.0,117740.0,0.70409469]
[1752625480623,0.06409547,117750.0,117740.0,0.70409469]
[1752625480835,0.41116834,117750.0,117740.0,0.70409469]
[1752625481042,0.05560312,117750.0,117740.0,0.70409469]
[1752625481241,0.41116827,117750.0,117740.0,0.36661469]
[1752625481656,0.41116827,117750.0,117740.0,0.50017469]
[1752625481829,0.40267599,117750.0,117740.0,0.50017469]
[1752625482031,0.41116819,117750.0,117740.0,0.50017469]
[1752625482640,0.03861908,117750.0,117740.0,0.50017469]
[1752625483341,0.04711099,117750.0,117740.0,0.50017469]
[1752625483550,0.04711099,117750.0,117740.0,0.50013469]
[1752625483769,0.03861908,117750.0,117740.0,0.50013469]
[1752625484643,0.03861908,117750.0,117740.0,0.36661469]
[1752625484851,0.04711099,117750.0,117740.0,0.50013469]
[1752625485269,0.05560305,117750.0,117740.0,0.50013469]
[1752625486461,0.04711099,117750.0,117740.0,0.50013469]
[1752625487754,0.03861908,117750.0,117740.0,0.50013469]
[1752625487955,0.04711114,117750.0,117740.0,0.50013469]
[1752625488167,0.04711107,117750.0,117740.0,0.50013469]
[1752625488396,0.03861908,117750.0,117740.0,0.50013469]
[1752625490309,0.04711107,117750.0,117740.0,0.50013469]
[1752625490712,0.05560327,117750.0,117740.0,0.50013469]
[1752625490918,0.40267607,117750.0,117740.0,0.50013469]
[1752625491116,0.39418394,117750.0,117740.0,0.50013469]
[1752625492833,0.06409547,117750.0,117740.0,0.50013469]
[1752625493044,0.41966061,117750.0,117740.0,0.50013469]
[1752625493955,0.41116819,117750.0,117740.0,0.50013469]
[1752625495018,0.39418386,117750.0,117740.0,0.50013469]
[1752625495225,0.40267592,117750.0,117740.0,0.50013469]
[1752625496074,0.41966062,117750.0,117740.0,0.50013469]
[1752625496288,0.42815311,117750.0,117740.0,0.50013469]
[1752625496706,0.20885894,117740.0,117730.0,0.025501]
[1752625496931,0.56121181,117740.0,117730.0,0.158981]
[1752625497156,0.90121181,117740.0,117730.0,0.158981]
[1752625497367,0.90121181,117740.0,117730.0,0.158941]
[1752625497806,0.55413894,117740.0,117730.0,0.158941]
[1752625498030,0.90121181,117740.0,117730.0,0.158941]
[1752625498864,0.90976244,117740.0,117730.0,0.13344]
[1752625499102,0.90976244,117740.0,117730.0,0.14442626]
[1752625499313,0.73134551,117740.0,117730.0,0.42529792]
[1752625499511,0.75682414,117740.0,117730.0,0.42529792]
[1752625499925,0.76531728,117740.0,117730.0,0.42529792]
[1752625500101,0.75682414,117740.0,117730.0,0.42529792]
[1752625500305,0.75682399,117740.0,117730.0,0.42529792]
[1752625500507,0.76631706,117740.0,117730.0,0.42529792]
[1752625500719,0.76631756,117740.0,117730.0,0.42529792]
[1752625501924,0.76631756,117740.0,117730.0,0.41431166]
[1752625502268,0.40083843,117740.0,117730.0,0.41431166]
[1752625502506,0.03678,117740.0,117730.0,0.41431166]
[1752625502706,0.00628,117740.0,117730.0,0.41431166]
[1752625503330,0.00628,117740.0,117730.0,0.41645166]
[1752625503667,0.00628,117740.0,117730.0,0.50221128]
[1752625504767,0.001,117740.0,117730.0,0.50221128]
[1752625505596,0.00306,117740.0,117730.0,0.50221128]
[1752625505794,0.00628,117740.0,117730.0,0.50221128]
[1752625505964,0.00528,117740.0,117730.0,0.50221128]
[1752625506940,0.05346549,117740.0,117730.0,0.50007128]
[1752625507146,0.40903136,117740.0,117730.0,0.50007128]
[1752625507344,0.40053836,117740.0,117730.0,0.50007128]
[1752625507780,0.40903136,117740.0,117730.0,0.50007128]
[1752625507982,0.39204551,117740.0,117730.0,0.50007128]
[1752625508192,0.40053829,117740.0,117730.0,0.50007128]
[1752625508408,0.40903121,117740.0,117730.0,0.50007128]
[1752625508854,0.05346542,117740.0,117730.0,0.50007128]
[1752625509066,0.40053829,117740.0,117730.0,0.50007128]
[1752625510351,0.39204551,117740.0,117730.0,0.50007128]
[1752625510559,0.40053836,117740.0,117730.0,0.50007128]
[1752625510771,0.40053829,117740.0,117730.0,0.50007128]
[1752625510993,0.39204551,117740.0,117730.0,0.50007128]
[1752625511199,0.36815287,117740.0,117730.0,0.50007128]
[1752625511412,0.02108,117740.0,117730.0,0.50007128]
[1752625511646,0.35235287,117740.0,117730.0,0.50007128]
[1752625512105,0.00528,117740.0,117730.0,0.50007128]
[1752625515953,0.01377264,117740.0,117730.0,0.50007128]
[1752625516182,0.39190827,117750.0,117740.0,0.19534479]
[1752625516500,0.39406827,117750.0,117740.0,0.28085507]
[1752625516626,0.40986827,117750.0,117740.0,0.35305125]
[1752625516844,0.41836069,117750.0,117740.0,0.35305125]
[1752625517279,0.07128782,117750.0,117740.0,0.35305125]
[1752625517491,0.41836069,117750.0,117740.0,0.35305125]
[1752625518118,0.41936069,117750.0,117740.0,0.35305125]
[1752625518874,0.42785318,117750.0,117740.0,0.35305125]
[1752625519243,0.59770456,117750.0,117740.0,0.35305125]
[1752625519632,0.58072052,117750.0,117740.0,0.26386929]
[1752625520287,0.58072052,117750.0,117740.0,0.2808555]
[1752625520461,0.57222824,117750.0,117740.0,0.2893485]
[1752625521552,0.57222824,117750.0,117740.0,0.29784142]
[1752625521856,0.57222824,117750.0,117740.0,0.2893485]
[1752625522234,0.57222824,117750.0,117740.0,0.34861537]
[1752625522449,0.55524333,117750.0,117740.0,0.08551028]
[1752625522662,0.55524333,117750.0,117740.0,0.39718937]
[1752625523172,0.55524333,117750.0,117740.0,0.40568258]
[1752625523173,0.55524333,117750.0,117740.0,0.41417558]
[1752625523887,0.55524333,117750.0,117740.0,0.4226685]
[1752625525524,0.55524333,117750.0,117740.0,0.41417558]
[1752625526011,0.55524333,117750.0,117740.0,0.45495519]
[1752625526785,0.55524333,117750.0,117740.0,0.46344833]
[1752625527502,0.55524333,117750.0,117740.0,0.4719414]
[1752625529024,0.55524333,117750.0,117740.0,0.46344833]
[1752625529284,0.55524333,117750.0,117740.0,0.45495519]
[1752625529501,0.55524333,117750.0,117740.0,0.39718937]
[1752625529722,0.55524333,117750.0,117740.0,0.22732357]
[1752625530360,0.20965894,117740.0,117730.0,0.18686774]
[1752625530612,0.56190181,117740.0,117730.0,0.41415203]
[1752625530844,0.56190181,117740.0,117730.0,0.4226456]
[1752625531059,0.56190181,117740.0,117730.0,0.47255661]
[1752625531276,0.56190181,117740.0,117730.0,0.41415203]
[1752625531744,0.57039488,117740.0,117730.0,0.4226456]
[1752625531970,0.40902208,117740.0,117730.0,0.4311391]
[1752625532182,0.41751529,117740.0,117730.0,0.4311391]
[1752625532494,0.41751529,117740.0,117730.0,0.49124238]
[1752625534020,0.07044242,117740.0,117730.0,0.49124238]
[1752625534226,0.41751529,117740.0,117730.0,0.49124238]
[1752625535064,0.06194921,117740.0,117730.0,0.49124238]
[1752625535250,0.58738109,117740.0,117730.0,0.49124238]
[1752625536860,0.41751529,117740.0,117730.0,0.49124238]
[1752625537472,0.40052894,117740.0,117730.0,0.49124238]
[1752625537704,0.40902208,117740.0,117730.0,0.49124238]
[1752625537909,0.40052894,117740.0,117730.0,0.49124238]
[1752625538116,0.40902208,117740.0,117730.0,0.49124238]
[1752625540557,0.41751529,117740.0,117730.0,0.49124238]
[1752625540761,0.58738109,117740.0,117730.0,0.41415203]
[1752625540996,0.57888809,117740.0,117730.0,0.41415203]
[1752625541774,0.57039502,117740.0,117730.0,0.40565838]
[1752625541981,0.21482901,117740.0,117730.0,0.40565838]
[1752625542202,0.56190188,117740.0,117730.0,0.40565838]
[1752625542406,0.56190188,117740.0,117730.0,0.41415217]
[1752625542615,0.56190188,117740.0,117730.0,0.4802011]
[1752625542825,0.56190188,117740.0,117730.0,0.48869475]
[1752625543414,0.56190188,117740.0,117730.0,0.48869431]
[1752625545230,0.56190188,117740.0,117730.0,0.48020074]
[1752625545412,0.56190188,117740.0,117730.0,0.46321337]
[1752625546354,0.56190188,117740.0,117730.0,0.47170709]
[1752625546559,0.56190188,117740.0,117730.0,0.48020074]
[1752625548428,0.56190188,117740.0,117730.0,0.21879028]
[1752625548701,0.69502188,117740.0,117730.0,0.21879028]
[1752625549549,0.69602188,117740.0,117730.0,0.21879028]
[1752625551670,0.69602188,117740.0,117730.0,0.13328]
[1752625552561,0.00849408,117720.0,117710.0,0.25554206]
[1752625552806,0.55297515,117720.0,117710.0,0.48271851]
[1752625553020,0.55297515,117720.0,117710.0,0.21864099]
[1752625553021,0.91796964,117720.0,117710.0,0.21864099]
[1752625553202,0.57089677,117720.0,117710.0,0.21864099]
[1752625554128,0.57938906,117720.0,117710.0,0.21864099]
[1752625554565,0.92646193,117720.0,117710.0,0.13313071]
[1752625555000,1.05954193,117720.0,117710.0,0.13313071]
[1752625555209,1.05954193,117720.0,117710.0,5.071e-05]
[1752625555210,1.39954193,117720.0,117710.0,5.071e-05]
[1752625556288,1.40154193,117720.0,117710.0,5.071e-05]